bitfinex/quotes_SOLUSD_20241122
["timestamp","ask_amount","ask_price","bid_price","bid_amount"]
[1732291623586,6.4596,254.88,254.84,19.18860898]
[1732291623920,15.4697,254.9,254.86,19.18860898]
[1732291624101,6.4596,254.95,254.88,19.18860898]
[1732291624298,6.4596,254.95,254.9,19.18860898]
[1732291625315,19.18860898,254.94,254.86,19.18860898]
[1732291626005,6.4596,254.95,254.9,19.18860898]
[1732291626190,6.4596,254.95,254.88,19.18860898]
[1732291627012,23.776884,254.93,254.86,19.18860898]
[1732291627218,19.18860898,254.9,254.82,19.18860898]
[1732291627415,23.776884,254.89,254.82,19.18860898]
[1732291627596,19.18860898,254.88,254.8,19.18860898]
[1732291627797,19.18860898,254.86,254.78,19.18860898]
[1732291627996,23.776884,254.85,254.78,19.18860898]
[1732291628510,23.776884,254.87,254.82,19.18860898]
[1732291628696,20.0,254.88,254.82,19.18860898]
[1732291629097,23.776884,254.87,254.82,19.18860898]
[1732291629399,23.776884,254.89,254.82,19.18860898]
[1732291629925,19.18860898,254.88,254.8,19.18860898]
[1732291630089,23.776884,254.87,254.8,19.18860898]
[1732291630293,23.776884,254.83,254.64,6.5306]
[1732291630506,23.776884,254.81,254.74,19.18860898]
[1732291630902,23.776884,254.81,254.78,19.18860898]
[1732291631110,39.18860898,254.86,254.78,19.18860898]
[1732291631390,23.776884,254.85,254.78,19.18860898]
[1732291631908,20.0,254.84,254.78,19.18860898]
[1732291632115,23.776884,254.85,254.78,19.18860898]
[1732291632302,23.776884,254.83,254.78,19.18860898]
[1732291633006,23.776884,254.83,254.8,19.18860898]
[1732291635132,23.776884,254.83,254.76,19.18860898]
[1732291635318,23.776884,254.83,254.78,19.18860898]
[1732291635506,20.0,254.87,254.82,19.18860898]
[1732291636008,20.0,254.89,254.82,19.18860898]
[1732291636528,20.0,254.89,254.67,21.68860898]
[1732291636529,19.18860898,254.88,254.8,19.18860898]
[1732291636836,23.776884,254.83,254.76,19.18860898]
[1732291637140,19.18860898,254.78,254.71,19.18860898]
[1732291637301,23.776884,254.76,254.71,19.18860898]
[1732291637626,23.776884,254.76,254.69,19.18860898]
[1732291638431,23.776884,254.76,254.62,13.079]
[1732291638432,23.776884,254.76,254.71,19.18860898]
[1732291638831,23.776884,254.76,254.73,19.18860898]
[1732291639315,23.776884,254.76,254.71,19.18860898]
[1732291640244,23.776884,254.76,254.73,19.18860898]
[1732291640615,23.776884,254.76,254.71,19.18860898]
[1732291640815,23.776884,254.76,254.69,19.18860898]
[1732291641016,42.96549298,254.76,254.67,19.18860898]
[1732291641240,23.776884,254.73,254.65,19.18860898]
[1732291641538,23.776884,254.73,254.63,19.18860898]
[1732291641539,23.776884,254.71,254.63,19.18860898]
[1732291642114,23.776884,254.68,254.61,19.18860898]
[1732291642521,23.776884,254.69,254.63,19.18860898]
[1732291642732,23.776884,254.71,254.63,19.18860898]
[1732291642934,23.776884,254.69,254.63,19.18860898]
[1732291643639,19.18860898,254.66,254.59,19.18860898]
[1732291643941,23.776884,254.65,254.59,19.18860898]
[1732291644436,23.776884,254.63,254.55,19.18860898]
[1732291644824,19.18860898,254.62,254.55,19.18860898]
[1732291645144,23.776884,254.63,254.57,19.18860898]
[1732291645448,23.776884,254.63,254.61,19.18860898]
[1732291645814,22.3144,254.68,254.61,19.18860898]
[1732291646033,15.7891,254.68,254.64,19.18860898]
[1732291647141,23.776884,254.67,254.64,19.18860898]
[1732291648329,23.776884,254.67,254.54,19.18860898]
[1732291648330,23.776884,254.67,254.61,19.18860898]
[1732291649530,23.776884,254.67,254.63,19.18860898]
[1732291649743,23.776884,254.67,254.65,19.18860898]
[1732291650341,21.8184,254.74,254.65,19.18860898]
[1732291650543,21.8184,254.74,254.69,19.18860898]
[1732291650747,21.8184,254.74,254.71,19.18860898]
[1732291650931,41.53060898,254.8,254.73,19.18860898]
[1732291651446,41.53060898,254.8,254.71,19.18860898]
[1732291651754,41.53060898,254.8,254.69,19.18860898]
[1732291651755,19.18860898,254.78,254.69,19.18860898]
[1732291652039,19.18860898,254.76,254.69,19.18860898]
[1732291652243,19.18860898,254.76,254.54,19.18860898]
[1732291652244,19.18860898,254.72,254.65,19.18860898]
[1732291652450,23.776884,254.71,254.65,19.18860898]
[1732291653444,20.0,254.77,254.69,19.18860898]
[1732291653642,20.0,254.79,254.71,19.18860898]
[1732291653949,41.53060898,254.8,254.71,19.18860898]
[1732291654325,41.53060898,254.8,254.73,19.18860898]
[1732291654849,41.53060898,254.8,254.71,19.18860898]
[1732291655640,19.18860898,254.78,254.69,19.18860898]
[1732291656540,23.776884,254.77,254.69,19.18860898]
[1732291656943,23.776884,254.77,254.71,19.18860898]
[1732291657136,22.342,254.8,254.73,19.18860898]
[1732291657458,22.342,254.8,254.75,19.18860898]
[1732291657741,22.342,254.8,254.73,19.18860898]
[1732291658137,19.18860898,254.78,254.71,19.18860898]
[1732291658346,41.53060898,254.8,254.73,19.18860898]
[1732291659151,41.53060898,254.8,254.71,19.18860898]
[1732291659328,19.18860898,254.78,254.71,19.18860898]
[1732291660031,23.776884,254.77,254.69,19.18860898]
[1732291660228,19.18860898,254.76,254.67,19.18860898]
[1732291660551,23.776884,254.75,254.67,19.18860898]
[1732291660754,23.776884,254.73,254.65,19.18860898]
[1732291661450,23.776884,254.73,254.67,19.18860898]
[1732291661647,23.776884,254.73,254.65,19.18860898]
[1732291662347,23.776884,254.71,254.65,19.18860898]
[1732291662838,19.18860898,254.7,254.61,19.18860898]
[1732291663042,23.776884,254.69,254.61,19.18860898]
[1732291663349,19.18860898,254.68,254.59,19.18860898]
[1732291663539,23.776884,254.67,254.59,19.18860898]
[1732291663941,23.776884,254.67,254.61,19.18860898]
[1732291664146,23.776884,254.69,254.61,19.18860898]
[1732291664666,23.776884,254.69,254.63,19.18860898]
[1732291665147,23.776884,254.69,254.61,19.18860898]
[1732291666348,137.3,254.77,254.65,19.18860898]
[1732291666550,19.18860898,254.74,254.65,19.18860898]
[1732291666754,19.18860898,254.78,254.69,19.18860898]
[1732291667070,22.342,254.8,254.75,19.18860898]
[1732291668052,41.53060898,254.8,254.71,19.18860898]
[1732291668461,22.342,254.8,254.73,19.18860898]
[1732291668956,41.53060898,254.8,254.73,19.18860898]
[1732291669335,41.53060898,254.8,254.71,19.18860898]
[1732291669536,41.53060898,254.8,254.73,19.18860898]
[1732291669748,22.342,254.8,254.73,19.18860898]
[1732291670059,22.342,254.8,254.75,19.18860898]
[1732291670553,23.776884,254.77,254.7,19.18860898]
[1732291673843,23.776884,254.77,254.68,19.18860898]
[1732291674044,23.776884,254.77,254.66,19.18860898]
[1732291674045,23.776884,254.75,254.66,19.18860898]
[1732291674850,23.776884,254.75,254.55,2.5]
[1732291674851,23.776884,254.73,254.64,19.18860898]
[1732291675051,23.776884,254.71,254.64,19.18860898]
[1732291675350,23.776884,254.71,254.66,19.18860898]
[1732291675557,137.3,254.78,254.68,19.18860898]
[1732291675558,23.776884,254.75,254.68,19.18860898]
[1732291675931,23.776884,254.75,254.7,19.18860898]
[1732291676135,23.776884,254.75,254.68,19.18860898]
[1732291677851,22.342,254.8,254.7,19.18860898]
[1732291677852,19.18860898,254.78,254.7,19.18860898]
[1732291678056,41.53060898,254.8,254.72,19.18860898]
[1732291678652,19.18860898,254.78,254.7,19.18860898]
[1732291679553,19.18860898,254.76,254.68,19.18860898]
[1732291679763,23.776884,254.75,254.68,19.18860898]
[1732291681567,19.18860898,254.74,254.66,19.18860898]
[1732291681758,23.776884,254.73,254.66,19.18860898]
[1732291682258,23.776884,254.75,254.68,19.18860898]
[1732291682459,41.53060898,254.8,254.72,19.18860898]
[1732291682764,19.18860898,254.78,254.7,19.18860898]
[1732291683356,19.18860898,254.78,254.68,19.18860898]
[1732291683665,19.18860898,254.76,254.68,19.18860898]
[1732291683839,23.776884,254.77,254.68,19.18860898]
[1732291684259,23.776884,254.77,254.7,19.18860898]
[1732291684465,20.0,254.79,254.74,19.18860898]
[1732291684755,39.18860898,254.79,254.7,19.18860898]
[1732291685352,19.18860898,254.77,254.68,19.18860898]
[1732291685553,19.18860898,254.73,254.53,11.3789]
[1732291685857,23.776884,254.7,254.62,19.18860898]
[1732291686456,23.776884,254.68,254.62,19.18860898]
[1732291686660,23.776884,254.68,254.62,12.00049146]
[1732291687136,23.776884,254.68,254.67,12.00049146]
[1732291688752,23.776884,254.68,254.65,12.00049146]
[1732291689767,23.776884,254.68,254.62,12.00049146]
[1732291690148,23.776884,254.68,254.54,2.5]
[1732291690461,16.4718,254.75,254.67,24.00098292]
[1732291690666,16.4718,254.75,254.74,12.00049146]
[1732291690876,16.4718,254.75,254.59,2.5]
[1732291691043,16.4718,254.75,254.74,12.00049146]
[1732291691368,6.6028,254.8,254.74,12.00049146]
[1732291691663,6.6028,254.8,254.77,12.00049146]
[1732291691866,16.4718,254.81,254.79,12.00049146]
[1732291692078,22.8655,254.87,254.79,12.00049146]
[1732291692364,22.8655,254.87,254.66,6.347]
[1732291692365,6.3937,254.93,254.86,12.00049146]
[1732291692541,6.3937,254.93,254.89,12.00049146]
[1732291692739,6.3937,254.93,254.89,19.15995497]
[1732291693144,16.4718,254.94,254.91,19.15995497]
[1732291693351,6.033,255.0,254.93,19.15995497]
[1732291693352,22.4828,255.0,254.93,19.15995497]
[1732291693556,22.4828,255.0,254.95,19.15995497]
[1732291693760,22.4828,255.0,254.97,19.15995497]
[1732291694340,16.4498,255.0,254.97,19.15995497]
[1732291694710,16.4498,255.0,254.91,19.15995497]
[1732291694971,23.776884,254.99,254.91,19.15995497]
[1732291695171,42.93683897,254.99,254.91,19.15995497]
[1732291695340,16.4498,255.0,254.87,19.15995497]
[1732291695341,23.776884,254.94,254.87,19.15995497]
[1732291696562,19.15995497,254.95,254.8,19.15995497]
[1732291696563,23.776884,254.98,254.89,19.15995497]
[1732291696872,19.15995497,254.99,254.8,19.15995497]
[1732291696873,23.776884,254.96,254.87,19.15995497]
[1732291697372,19.15995497,254.95,254.87,19.15995497]
[1732291697557,23.776884,254.94,254.87,19.15995497]
[1732291699673,23.776884,254.92,254.85,19.15995497]
[1732291699975,23.776884,254.94,254.85,19.15995497]
[1732291700352,23.776884,254.92,254.83,19.15995497]
[1732291700547,19.15995497,254.88,254.66,2.5]
[1732291700759,23.776884,254.85,254.76,19.15995497]
[1732291701576,19.15995497,254.81,254.74,19.15995497]
[1732291701778,23.776884,254.8,254.65,5.0]
[1732291702072,23.776884,254.82,254.74,19.15995497]
[1732291702288,23.776884,254.8,254.74,19.15995497]
[1732291702576,23.776884,254.8,254.72,19.15995497]
[1732291702752,19.15995497,254.79,254.7,19.15995497]
[1732291702947,23.776884,254.78,254.72,19.15995497]
[1732291703562,23.776884,254.8,254.72,19.15995497]
[1732291704365,23.776884,254.8,254.67,19.15995497]
[1732291704366,19.15995497,254.75,254.67,19.15995497]
[1732291704571,23.776884,254.72,254.65,20.0575455]
[1732291704977,23.776884,254.75,254.65,0.89759053]
[1732291706586,23.776884,254.69,254.65,0.89759053]
[1732291706754,23.776884,254.69,254.58,6.1519]
[1732291707075,23.776884,254.69,254.59,2.5]
[1732291707879,23.776884,254.69,254.58,6.1519]
[1732291708347,15.8519,254.76,254.61,2.5]
[1732291708551,23.776884,254.75,254.62,2.5]
[1732291708753,15.8519,254.76,254.61,2.5]
[1732291709067,15.8519,254.76,254.62,2.5]
[1732291709455,15.8519,254.76,254.62,5.0]
[1732291710073,23.776884,254.75,254.62,5.0]
[1732291710380,25.77596903,254.8,254.64,2.5]
[1732291710381,6.5835,254.8,254.64,2.5]
[1732291710681,6.5835,254.8,254.59,5.0]
[1732291710855,6.5835,254.8,254.62,2.5]
[1732291711381,25.77596903,254.8,254.62,2.5]
[1732291711558,23.776884,254.79,254.62,2.5]
[1732291711959,23.776884,254.79,254.62,5.0]
[1732291712170,23.776884,254.79,254.62,2.5]
[1732291713269,19.19246903,254.78,254.58,8.6519]
[1732291713454,23.776884,254.77,254.62,5.0]
[1732291713662,23.776884,254.79,254.62,2.5]
[1732291713862,23.776884,254.79,254.58,8.6519]
[1732291714173,23.776884,254.79,254.61,2.5]
[1732291714487,23.776884,254.79,254.58,8.6519]
[1732291714852,23.776884,254.79,254.58,6.1519]
[1732291714853,19.19246903,254.78,254.58,6.1519]
[1732291715078,23.776884,254.77,254.58,6.1519]
[1732291715288,23.776884,254.77,254.58,8.6519]
[1732291715584,23.776884,254.77,254.58,6.1519]
[1732291715758,19.19246903,254.76,254.58,6.1519]
[1732291715962,23.776884,254.75,254.58,6.1519]
[1732291716283,23.776884,254.73,254.58,6.1519]
[1732291716959,16.435,254.91,254.67,2.5]
[1732291717160,19.19246903,254.89,254.67,2.5]
[1732291717378,19.19246903,254.89,254.68,2.5]
[1732291717580,19.19246903,254.83,254.62,2.5]
[1732291717793,19.19246903,254.85,254.65,2.5]
[1732291718363,19.19246903,254.83,254.64,2.5]
[1732291718580,23.776884,254.82,254.64,2.5]
[1732291719087,23.776884,254.84,254.64,2.5]
[1732291720263,35.62746903,254.91,254.7,6.5498]
[1732291720479,16.435,254.91,254.72,13.079]
[1732291720679,16.435,254.91,254.73,5.0]
[1732291721286,16.435,254.91,254.75,2.5]
[1732291722291,16.435,254.91,254.72,15.579]
[1732291722590,23.776884,254.9,254.74,2.5]
[1732291723087,23.776884,254.9,254.72,18.079]
[1732291723276,23.776884,254.9,254.72,15.579]
[1732291723475,2.5,254.55,254.49,9.43911429]
[1732291723787,2.5,254.55,254.14,6.1499]
[1732291723788,23.776884,254.29,254.14,6.1499]
[1732291724092,23.776884,254.27,254.14,6.1499]
[1732291724277,2.68115934,254.26,254.14,6.1499]
[1732291724474,8.04347803,254.26,254.14,6.1499]
[1732291724795,8.04347803,254.26,254.09,21.20713182]
[1732291724960,8.04347803,254.26,254.15,7.37143205]
[1732291724961,2.88556325,254.25,254.15,7.37143205]
[1732291725164,8.04347803,254.26,254.15,7.37143205]
[1732291725165,2.88556325,254.24,254.15,7.37143205]
[1732291725365,2.88556325,254.23,254.15,7.37143205]
[1732291725562,18.76811544,254.25,254.15,7.37143205]
[1732291726091,37.53623086,254.25,254.07,20.0]
[1732291726280,37.53623086,254.25,254.07,43.776884]
[1732291727063,37.53623086,254.25,254.06,32.41327483]
[1732291727667,37.53623086,254.25,254.07,19.99265074]
[1732291727884,37.53623086,254.25,254.09,19.11855305]
[1732291728489,37.53623086,254.25,254.09,23.776884]
[1732291728879,37.53623086,254.25,254.08,6.1994]
[1732291730290,37.53623086,254.25,254.09,23.776884]
[1732291731571,37.53623086,254.25,254.11,23.776884]
[1732291733073,37.53623086,254.25,254.09,23.776884]
[1732291734886,37.53623086,254.25,254.08,6.1994]
[1732291735073,23.776884,254.24,254.08,6.1994]
[1732291736306,8.04347803,254.23,254.05,7.73580549]
[1732291737099,8.04347803,254.23,254.06,43.33589793]
[1732291737509,8.04347803,254.23,254.06,39.479695]
[1732291738499,10.72463739,254.25,254.06,39.479695]
[1732291738702,23.776884,254.29,254.06,39.479695]
[1732291738903,23.776884,254.3,254.06,39.479695]
[1732291740607,23.776884,254.3,254.07,3.914]
[1732291740781,26.276884,254.3,254.09,3.914]
[1732291740985,23.776884,254.28,254.09,3.914]
[1732291741310,20.0,254.4,254.24,120.45881476]
[1732291741490,31.27584684,254.34,254.33,96.33913521]
[1732291741693,31.27584684,254.34,254.33,89.56709869]
[1732291741897,31.27584684,254.34,254.33,158.62612375]
[1732291742503,31.27584684,254.35,254.33,158.62612375]
[1732291742813,31.27584684,254.34,254.33,94.87933139]
[1732291742989,31.27584684,254.34,254.33,63.00593521]
[1732291744103,31.27584684,254.35,254.33,63.00593521]
[1732291744307,6.4301,254.36,254.33,63.00593521]
[1732291744495,37.70594684,254.36,254.33,63.00593521]
[1732291744709,6.4301,254.36,254.33,63.00593521]
[1732291745199,6.4301,254.36,254.24,120.45881476]
[1732291745587,6.4301,254.36,254.28,12.01058279]
[1732291746112,6.4101,254.36,254.29,12.01058279]
[1732291746408,6.4101,254.36,254.3,12.01058279]
[1732291746921,6.4101,254.36,254.31,12.01058279]
[1732291747238,6.4101,254.36,254.3,12.01058279]
[1732291747406,19.2491786,254.43,254.32,12.01058279]
[1732291747622,19.2491786,254.44,254.25,23.776884]
[1732291747797,19.2491786,254.46,254.25,23.776884]
[1732291748811,19.2491786,254.43,254.24,23.776884]
[1732291749011,19.2491786,254.4,254.24,23.776884]
[1732291749593,19.2491786,254.37,254.24,23.776884]
[1732291749813,19.2491786,254.39,254.24,23.776884]
[1732291749994,19.2491786,254.36,254.24,23.776884]
[1732291750190,19.2491786,254.37,254.24,23.776884]
[1732291750484,43.776884,254.44,254.11,120.45881476]
[1732291750485,19.2491786,254.35,254.11,120.45881476]
[1732291750810,19.2491786,254.36,254.13,2.5]
[1732291751118,19.2491786,254.36,254.14,23.776884]
[1732291751401,19.2491786,254.35,254.11,125.64616208]
[1732291751607,19.2491786,254.33,254.11,125.64616208]
[1732291751789,62.98211103,254.32,254.11,125.64616208]
[1732291751991,36.74099005,254.31,254.11,125.64616208]
[1732291752189,76.1038932,254.3,254.11,125.64616208]
[1732291752389,73.48198012,254.29,254.11,125.64616208]
[1732291752585,5.95129513,254.24,254.11,125.64616208]
[1732291752780,11.90259026,254.27,254.11,125.64616208]
[1732291752781,5.95129513,254.22,254.11,125.64616208]
[1732291752987,5.95129513,254.22,254.11,120.45881476]
[1732291753298,5.95129513,254.21,254.11,120.45881476]
[1732291753701,5.95129513,254.25,254.11,120.45881476]
[1732291754009,5.95129513,254.26,254.11,120.45881476]
[1732291754788,5.95129513,254.26,254.12,23.776884]
[1732291755604,5.95129513,254.18,254.12,23.776884]
[1732291755997,5.95129513,254.18,254.11,120.45881476]
[1732291756197,5.95129513,254.16,254.11,120.45881476]
[1732291756501,5.95129513,254.13,254.11,120.45881476]
[1732291756691,35.7077708,254.23,254.11,120.45881476]
[1732291756692,5.95129513,254.17,254.11,120.45881476]
[1732291757317,5.95129513,254.16,254.11,120.45881476]
[1732291757513,5.95129513,254.17,254.11,120.45881476]
[1732291757696,5.95129513,254.14,254.11,120.45881476]
[1732291757902,35.7077708,254.27,254.11,120.45881476]
[1732291757903,23.80518053,254.28,254.11,120.45881476]
[1732291758404,2.62140515,254.27,254.11,120.45881476]
[1732291758591,2.62140515,254.26,254.11,120.45881476]
[1732291758793,59.51295133,254.32,254.12,23.776884]
[1732291758988,2.62125696,254.31,254.12,23.776884]
[1732291759195,2.62070013,254.3,254.12,23.776884]
[1732291759513,20.0,254.31,254.12,23.776884]
[1732291759707,39.2491786,254.32,254.12,23.776884]
[1732291760105,20.0,254.34,254.12,23.776884]
[1732291760307,19.2491786,254.37,254.12,23.776884]
[1732291760513,19.2491786,254.36,254.12,30.044284]
[1732291760695,19.2491786,254.4,254.14,26.276884]
[1732291760901,25.8786786,254.45,254.19,23.776884]
[1732291761216,25.8786786,254.45,254.22,23.776884]
[1732291762327,6.6295,254.45,254.22,23.776884]
[1732291762506,19.2491786,254.39,254.22,23.776884]
[1732291762706,19.2491786,254.41,254.22,23.776884]
[1732291762906,6.6295,254.45,254.22,23.776884]
[1732291762907,19.2491786,254.4,254.22,23.776884]
[1732291763113,19.2491786,254.41,254.22,23.776884]
[1732291765714,19.2491786,254.42,254.22,23.776884]
[1732291768107,19.2491786,254.39,254.22,23.776884]
[1732291768831,19.2491786,254.37,254.21,15.4001]
[1732291770516,19.2491786,254.39,254.21,15.4001]
[1732291770725,20.0,254.4,254.22,23.776884]
[1732291771016,19.2491786,254.41,254.22,23.776884]
[1732291771600,20.0,254.42,254.22,23.776884]
[1732291771806,19.2491786,254.43,254.22,23.776884]
[1732291772404,19.2491786,254.38,254.21,15.4001]
[1732291772608,19.2491786,254.44,254.21,15.4001]
[1732291773714,19.2491786,254.44,254.22,23.776884]
[1732291773913,19.2491786,254.49,254.24,23.776884]
[1732291774106,2.88971487,254.48,254.26,23.776884]
[1732291774308,19.2491786,254.51,254.26,26.276884]
[1732291774535,2.88961793,254.5,254.26,26.276884]
[1732291774709,19.2491786,254.51,254.26,23.776884]
[1732291774910,19.2491786,254.5,254.26,23.776884]
[1732291775125,19.2491786,254.46,254.26,23.776884]
[1732291777208,19.2491786,254.49,254.26,26.276884]
[1732291777410,19.2491786,254.49,254.26,23.776884]
[1732291778112,19.2491786,254.47,254.26,23.776884]
[1732291779012,19.2491786,254.49,254.26,23.776884]
[1732291779413,19.2491786,254.47,254.26,23.776884]
[1732291779712,19.2491786,254.49,254.26,23.776884]
[1732291780124,19.2491786,254.47,254.26,23.776884]
[1732291780825,19.2491786,254.49,254.26,23.776884]
[1732291781031,20.0,254.5,254.26,23.776884]
[1732291781336,2.8896897,254.49,254.26,23.776884]
[1732291781505,20.0,254.5,254.26,23.776884]
[1732291781707,2.89027714,254.49,254.28,23.776884]
[1732291781933,19.2491786,254.55,254.31,23.776884]
[1732291782235,2.89066672,254.54,254.29,23.776884]
[1732291782423,22.13984532,254.53,254.28,23.776884]
[1732291782620,2.89066672,254.52,254.28,23.776884]
[1732291782833,19.2491786,254.51,254.28,23.776884]
[1732291783721,19.2491786,254.53,254.28,23.776884]
[1732291784045,2.88984588,254.52,254.28,23.776884]
[1732291784207,19.2491786,254.53,254.28,23.776884]
[1732291784532,2.88943533,254.52,254.28,23.776884]
[1732291784758,12.01736278,254.53,254.28,23.776884]
[1732291784937,12.01736278,254.51,254.28,23.776884]
[1732291785115,20.0,254.5,254.28,23.776884]
[1732291785316,12.01736278,254.49,254.28,23.776884]
[1732291785633,20.0,254.46,254.27,15.3326]
[1732291786832,39.23903678,254.46,254.27,15.3326]
[1732291787431,39.23903678,254.46,254.28,23.776884]
[1732291787631,20.0,254.48,254.28,23.776884]
[1732291791737,19.23903678,254.47,254.28,23.776884]
[1732291791942,20.0,254.46,254.28,23.776884]
[1732291792858,43.01592078,254.45,254.27,15.3326]
[1732291795850,19.23903678,254.43,254.27,15.3326]
[1732291796545,23.776884,254.42,254.27,15.3326]
[1732291796749,19.23903678,254.39,254.27,15.3326]
[1732291797041,23.776884,254.38,254.27,15.3326]
[1732291798128,23.776884,254.4,254.27,15.3326]
[1732291801053,23.776884,254.42,254.27,15.3326]
[1732291801240,20.0,254.41,254.27,15.3326]
[1732291801746,20.0,254.39,254.27,15.3326]
[1732291802264,2.89160668,254.38,254.27,15.3326]
[1732291802549,20.0,254.39,254.27,15.3326]
[1732291802955,20.0,254.41,254.27,15.3326]
[1732291803133,20.0,254.39,254.27,15.3326]
[1732291803737,23.776884,254.38,254.27,15.3326]
[1732291803942,20.0,254.37,254.27,15.3326]
[1732291804755,137.3,254.47,254.27,15.3326]
[1732291804962,2.89559423,254.46,254.27,15.3326]
[1732291805134,2.89559423,254.45,254.27,15.3326]
[1732291805454,2.89559423,254.44,254.27,15.3326]
[1732291805632,19.23903678,254.38,254.27,15.3326]
[1732291805956,19.23903678,254.37,254.27,15.3326]
[1732291806131,2.89878864,254.36,254.27,15.3326]
[1732291806332,2.89878864,254.35,254.27,15.3326]
[1732291806533,23.776884,254.36,254.27,15.3326]
[1732291806770,22.89917076,254.35,254.27,15.3326]
[1732291807050,26.67561186,254.34,254.27,15.3326]
[1732291807255,20.0,254.33,254.27,15.3326]
[1732291808060,20.0,254.36,254.27,15.3326]
[1732291808251,20.0,254.34,254.27,15.3326]
[1732291808566,20.0,254.32,254.27,15.3326]
[1732291809065,20.0,254.3,254.2,21.6364]
[1732291810253,23.776884,254.31,254.2,21.6364]
[1732291811164,20.0,254.31,254.2,21.6364]
[1732291812735,23.776884,254.3,254.2,21.6364]
[1732291812932,23.776884,254.28,254.2,21.6364]
[1732291813143,20.0,254.27,254.2,21.6364]
[1732291813750,20.0,254.27,254.2,15.1582]
[1732291814144,23.776884,254.26,254.2,15.1582]
[1732291814343,23.776884,254.24,254.2,15.1582]
[1732291815843,23.776884,254.26,254.2,15.1582]
[1732291816241,23.776884,254.24,254.2,15.1582]
[1732291816438,23.776884,254.26,254.2,15.1582]
[1732291816638,23.776884,254.24,254.2,15.1582]
[1732291817439,20.0,254.23,254.13,6.1806]
[1732291817643,12.03500223,254.17,254.1,16.3163]
[1732291817838,20.0,254.23,254.1,16.3163]
[1732291818048,23.776884,254.18,254.1,16.3163]
[1732291819045,23.776884,254.16,254.1,16.3163]
[1732291819243,23.776884,254.14,254.1,16.3163]
[1732291819647,12.03500223,254.19,254.1,16.3163]
[1732291819849,23.776884,254.18,254.1,16.3163]
[1732291820243,12.03500223,254.23,254.1,16.3163]
[1732291820444,12.03500223,254.25,254.1,16.3163]
[1732291821168,12.03500223,254.19,254.1,16.3163]
[1732291821667,26.28500223,254.28,254.05,6.0754]
[1732291821668,12.03500223,254.17,254.05,6.0754]
[1732291821972,43.776884,254.16,254.05,6.0754]
[1732291822175,20.0,254.17,254.05,6.0754]
[1732291822461,23.776884,254.16,254.05,6.0754]
[1732291823581,12.03500223,254.26,254.05,6.0754]
[1732291824073,12.03500223,254.28,254.06,15.2324]
[1732291824444,12.03500223,254.26,254.06,15.2324]
[1732291825268,23.776884,254.25,254.06,15.2324]
[1732291825452,23.776884,254.23,254.06,15.2324]
[1732291825873,20.0,254.22,254.06,15.2324]
[1732291826045,20.0,254.29,254.06,15.2324]
[1732291826375,12.03500223,254.3,254.06,15.2324]
[1732291826577,137.0660406,254.43,254.1,15.2859]
[1732291826776,12.03500223,254.32,254.12,15.2859]
[1732291827067,12.03500223,254.3,254.12,15.2859]
[1732291827969,23.776884,254.29,254.12,15.2859]
[1732291828269,23.776884,254.31,254.12,15.2859]
[1732291828665,23.776884,254.29,254.12,15.2859]
[1732291828856,23.776884,254.27,254.12,15.2859]
[1732291830753,12.03500223,254.26,254.12,15.2859]
[1732291830948,23.776884,254.25,254.12,15.2859]
[1732291831469,23.776884,254.23,254.12,15.2859]
[1732291831969,23.776884,254.21,254.12,15.2859]
[1732291833847,23.776884,254.19,254.12,15.2859]
[1732291834048,23.776884,254.19,254.05,15.3833]
[1732291834271,32.03500223,254.18,254.05,15.3833]
[1732291834655,23.776884,254.17,254.05,15.3833]
[1732291837870,20.0,254.18,254.05,15.3833]
[1732291838071,35.81188623,254.19,254.05,15.3833]
[1732291838072,23.776884,254.17,254.05,15.3833]
[1732291838256,20.0,254.18,254.05,15.3833]
[1732291838457,23.776884,254.17,254.05,15.3833]
[1732291839275,137.0660406,254.23,254.05,15.3833]
[1732291839464,149.10104283,254.23,254.05,15.3833]
[1732291840364,23.776884,254.22,254.05,15.3833]
[1732291842275,12.03500223,254.21,254.05,15.3833]
[1732291842480,23.776884,254.2,254.05,15.3833]
[1732291849182,23.776884,254.18,254.05,15.3833]